fUSD/lending_fUSD_20250309
["ID","MTS","AMOUNT","RATE_DAILY","PERIOD"]
[355740430,1741523447269,-500.0,9.103e-05,2]
[355740431,1741523447279,-500.0,9.103e-05,2]
[355740432,1741523447290,-506.89,9.103e-05,2]
[355740433,1741523447300,-500.0,9.103e-05,2]
[355740434,1741523447309,-500.0,9.103e-05,2]
[355740435,1741523447318,-43.96554762,9.103e-05,2]
[355740436,1741523447333,-558.55856952,9.103e-05,2]
[355740440,1741523704424,182.0,0.00028,120]
[355740441,1741523708869,206.0,0.00028,120]
[355740442,1741524033258,-38364.55348712,0.00025834,30]
[355740443,1741524033283,-254144.530337,0.00025834,30]
[355740444,1741524033310,-209252.88331389,0.00025834,30]
[355740445,1741524033335,-51696.38559056,0.00025834,30]
[355740446,1741524033360,-305797.80479099,0.00025834,30]
[355740447,1741524033385,-1552254.75325899,0.00025834,30]
[355740448,1741524033411,-6000.0,0.00025834,30]
[355740449,1741524033436,-31262.80302241,0.00025834,30]
[355740450,1741524033461,-719030.0,0.00025834,30]
[355740451,1741524033486,-1000.0,0.00025834,30]
[355740452,1741524033511,-1000.0,0.00025834,30]
[355740453,1741524033535,-1714.74138869,0.00025834,60]
[355740454,1741524033560,-1000.0,0.00025834,30]
[355740455,1741524033589,-1000.0,0.00025834,30]
[355740456,1741524033619,-1000.0,0.00025834,60]
[355740457,1741524033645,-1000.0,0.00025834,30]
[355740458,1741524033669,-1000.0,0.00025834,30]
[355740459,1741524033694,-1000.0,0.00025834,60]
[355740460,1741524033720,-1000.0,0.00025834,30]
[355740461,1741524033745,-1000.0,0.00025834,30]
[355740462,1741524033769,-1000.0,0.00025834,30]
[355740463,1741524034015,-1000.0,0.00025834,60]
[355740464,1741524034048,-1000.0,0.00025834,30]
[355740465,1741524034075,-150.0,0.00025834,30]
[355740466,1741524034101,-1000.0,0.00025834,30]
[355740467,1741524034127,-2107.49075071,0.00025834,90]
[355740468,1741524034152,-507.22141429,0.00025834,30]
[355740469,1741524034176,-379.08482754,0.00025834,30]
[355740470,1741524034201,-262.50851666,0.00025834,91]
[355740471,1741524034226,-869.59244818,0.00025834,30]
[355740472,1741524034251,-1000.0,0.00025834,30]
[355740473,1741524034277,-860.69539215,0.00025834,120]
[355740474,1741524034302,-1996.05315702,0.00025834,30]
[355740475,1741524034327,-733.8089323,0.00025834,30]
[355740476,1741524034353,-1679.48724071,0.00025834,30]
[355740477,1741524034378,-263.23521083,0.00025834,30]
[355740478,1741524034402,-851.77504173,0.00025834,30]
[355740479,1741524034426,-859.92185675,0.00025834,30]
[355740480,1741524034451,-1099.07493145,0.00025834,90]
[355740481,1741524034476,-926.25718315,0.00025834,30]
[355740482,1741524034500,-171.0155039,0.00025834,60]
[355740483,1741524034525,-161.6750813,0.00025834,30]
[355740484,1741524034549,-505.84587456,0.00025834,120]
[355740485,1741524034574,-207.31558672,0.00025834,30]
[355740486,1741524034599,-956.90654844,0.00025834,30]
[355740487,1741524034623,-349.74632064,0.00025834,30]
[355740488,1741524034647,-156.11066792,0.00025834,60]
[355740489,1741524034670,-205.23865931,0.00025834,30]
[355740490,1741524034695,-188.78860721,0.00025834,120]
[355740491,1741524034719,-156.01186185,0.00025834,120]
[355740492,1741524034744,-403.36004814,0.00025834,120]
[355740493,1741524034768,-511.00761562,0.00025834,120]
[355740494,1741524034792,-1079.77255242,0.00025834,30]
[355740495,1741524034816,-405.38742896,0.00025834,120]
[355740496,1741524034841,-208.76726836,0.00025834,120]
[355740497,1741524034865,-180.00473743,0.00025834,120]
[355740498,1741524034888,-880.18952577,0.00025834,30]
[355740499,1741524034913,-339.97391714,0.00025834,120]
[355740500,1741524034937,-993.34096237,0.00025834,120]
[355740501,1741524034962,-596.49965221,0.00025834,120]
[355740502,1741524034986,-202.7135712,0.00025834,30]
[355740503,1741524035012,-577.6709962,0.00025834,120]
[355740504,1741524035036,-1641.22807455,0.00025834,30]
[355740505,1741524035061,-1545.85352773,0.00025834,120]
[355740506,1741524035086,-265.514962,0.00025834,30]
[355740507,1741524035111,-2677.43380229,0.00025834,30]
[355740508,1741524035135,-462.9344875,0.00025834,45]
[355740509,1741524035162,-1758.84523536,0.00025834,30]
[355740510,1741524035188,-2313.72090131,0.00025834,30]
[355740511,1741524035214,-185.73379739,0.00025834,60]
[355740512,1741524035239,-2031.57271013,0.00025834,120]
[355740513,1741524035264,-2193.6239197,0.00025834,120]
[355740514,1741524035288,-1456.22508522,0.00025834,30]
[355740515,1741524035314,-952.06411137,0.00025834,120]
[355740516,1741524035340,-2185.27856943,0.00025834,30]
[355740517,1741524035364,-355.24489343,0.00025834,120]
[355740518,1741524035389,-425.05938304,0.00025834,30]
[355740519,1741524035415,-204.5,0.00025834,30]
[355740520,1741524035440,-489.15035032,0.00025834,120]
[355740521,1741524035464,-202.25979851,0.00025834,120]
[355740522,1741524035488,-6480.66940354,0.00025834,120]
[355740523,1741524035513,-335.88313766,0.00025834,120]
[355740524,1741524035537,-2468.22,0.00025834,90]
[355740525,1741524035564,-50000.0,0.00025834,30]
[355740526,1741524035593,-50000.0,0.00025834,31]
[355740527,1741524035622,-50000.0,0.00025834,32]
[355740528,1741524035649,-50000.0,0.00025834,33]
[355740529,1741524035677,-50000.0,0.00025834,34]
[355740530,1741524035703,-1381.57808671,0.00025834,120]
[355740531,1741524035729,-1883.92885183,0.00025834,120]
[355740532,1741524035755,-444.0,0.00025834,120]
[355740533,1741524035781,-17139.780019,0.00025834,30]
[355740534,1741524046916,-1127.87,0.00016493,30]
[355740535,1741524046942,-1649.5412204,0.0001688,30]
[355740536,1741524046987,-1127.87,0.00020971,30]
[355740537,1741524047014,-152.0,0.00021386,30]
[355740538,1741524047039,-152.0,0.00021499,31]
[355740539,1741524047067,-6518.51846434,0.00023,60]
[355740540,1741524047090,-1067.97253325,0.00023,30]
[355740541,1741524047121,-2586.98,0.00025,30]
[355740542,1741524047144,-1048.95456959,0.00025,50]
[355740543,1741524047168,-1127.87,0.0002545,30]
[355740544,1741524047193,-35789.57590261,0.0002545,30]
[355740545,1741524047220,-627.06,0.000257,31]
[355740546,1741524047248,-627.06,0.000257,31]
[355740547,1741524047276,-627.06,0.000257,31]
[355740548,1741524047303,-627.06,0.000257,31]
[355740549,1741524047330,-627.06,0.000257,31]
[355740550,1741524047358,-627.06,0.000257,31]
[355740551,1741524047386,-627.06,0.000257,31]
[355740552,1741524047413,-627.06,0.000257,31]
[355740553,1741524047440,-627.06,0.000257,31]
[355740554,1741524047467,-627.06,0.000257,31]
[355740555,1741524047493,-627.06,0.000257,31]
[355740556,1741524047521,-627.06,0.000257,31]
[355740557,1741524047550,-627.06,0.000257,31]
[355740558,1741524047578,-627.06,0.000257,31]
[355740559,1741524047606,-627.06,0.000257,31]
[355740560,1741524047633,-627.06,0.000257,31]
[355740561,1741524047671,-1200.0,0.00027,70]
[355740562,1741524047698,-2000.0,0.00027397,30]
[355740563,1741524047722,-2000.0,0.00027397,30]
[355740564,1741524047747,-2000.0,0.00027397,30]
[355740565,1741524048032,-2000.0,0.00027397,30]
[355740566,1741524048058,-2000.0,0.00027397,30]
[355740567,1741524048084,-2000.0,0.00027397,30]
[355740568,1741524048110,-2000.0,0.00027397,30]
[355740569,1741524048136,-2000.0,0.00027397,30]
[355740570,1741524048160,-2081.31247183,0.00027397,30]
[355740571,1741524048189,-701.63,0.00027397,60]
[355740572,1741524048218,-232.54561741,0.000275,30]
[355740573,1741524048244,-1500.0,0.00027581,30]
[355740574,1741524048273,-627.06,0.000277,31]
[355740575,1741524048302,-627.06,0.000277,31]
[355740576,1741524048331,-627.06,0.000277,31]
[355740577,1741524048360,-627.06,0.000277,31]
[355740578,1741524048388,-627.06,0.000277,31]
[355740579,1741524048416,-627.06,0.000277,31]
[355740580,1741524048445,-627.06,0.000277,31]
[355740581,1741524048474,-627.06,0.000277,31]
[355740582,1741524048502,-627.06,0.000277,31]
[355740583,1741524048531,-627.06,0.000277,31]
[355740584,1741524048559,-627.06,0.000277,31]
[355740585,1741524048587,-627.06,0.000277,31]
[355740586,1741524048616,-627.06,0.000277,31]
[355740587,1741524048645,-627.06,0.000277,31]
[355740588,1741524048674,-627.06,0.000277,31]
[355740589,1741524048703,-627.06,0.000277,31]
[355740590,1741524048732,-627.06,0.000277,31]
[355740591,1741524048761,-627.06,0.000277,31]
[355740592,1741524048791,-627.06,0.000277,31]
[355740593,1741524048821,-627.06,0.000277,31]
[355740594,1741524048851,-627.06,0.000277,31]
[355740595,1741524048880,-627.06,0.000277,31]
[355740596,1741524048909,-627.06,0.000277,31]
[355740597,1741524048939,-627.06,0.000277,31]
[355740598,1741524048965,-1218.76,0.00028,90]
[355740599,1741524048991,-900.0,0.00028,30]
[355740600,1741524049017,-900.0,0.00028,30]
[355740601,1741524049043,-900.0,0.00028,30]
[355740602,1741524049069,-900.0,0.00028,30]
[355740603,1741524049095,-900.0,0.00028,30]
[355740604,1741524049120,-900.0,0.00028,30]
[355740605,1741524049146,-900.0,0.00028,30]
[355740606,1741524049171,-900.0,0.00028,30]
[355740607,1741524049198,-900.0,0.00028,30]
[355740608,1741524049223,-500.0,0.00028,30]
[355740609,1741524049248,-500.0,0.00028,30]
[355740610,1741524049276,-900.0,0.00028,30]
[355740611,1741524049301,-500.0,0.00028,30]
[355740612,1741524049327,-900.0,0.00028,30]
[355740613,1741524049353,-500.0,0.00028,30]
[355740614,1741524049379,-900.0,0.00028,30]
[355740615,1741524049403,-500.0,0.00028,30]
[355740616,1741524049428,-900.0,0.00028,30]
[355740617,1741524049453,-500.0,0.00028,30]
[355740618,1741524049478,-500.0,0.00028,30]
[355740619,1741524049503,-1200.0,0.00028,30]
[355740620,1741524049527,-500.0,0.00028,30]
[355740621,1741524049551,-500.0,0.00028,30]
[355740622,1741524049576,-500.0,0.00028,30]
[355740623,1741524049601,-500.0,0.00028,30]
[355740624,1741524049626,-500.0,0.00028,30]
[355740625,1741524049651,-500.0,0.00028,30]
[355740626,1741524049675,-500.0,0.00028,30]
[355740627,1741524049700,-500.0,0.00028,30]
[355740628,1741524049724,-500.0,0.00028,30]
[355740629,1741524049748,-500.0,0.00028,30]
[355740630,1741524049774,-500.0,0.00028,30]
[355740631,1741524049799,-500.0,0.00028,30]
[355740632,1741524049823,-500.0,0.00028,30]
[355740633,1741524049848,-500.0,0.00028,30]
[355740634,1741524049873,-500.0,0.00028,30]
[355740635,1741524049898,-500.0,0.00028,30]
[355740636,1741524049922,-500.0,0.00028,30]
[355740637,1741524049949,-500.0,0.00028,30]
[355740638,1741524049973,-507.00287997,0.00028,30]
[355740639,1741524049999,-500.0,0.00028,30]
[355740640,1741524050024,-500.0,0.00028,30]
[355740641,1741524050049,-500.0,0.00028,30]
[355740642,1741524050072,-500.0,0.00028,30]
[355740643,1741524050097,-500.0,0.00028,30]
[355740644,1741524050121,-500.0,0.00028,30]
[355740645,1741524050146,-968.65579765,0.00028,30]
[355740646,1741524050171,-2700.0,0.00028,120]
[355740647,1741524050195,-178.14717159,0.00028,120]
[355740648,1741524050219,-1024.0,0.00028,120]
[355740649,1741524050245,-3600.0,0.00029,30]
[355740650,1741524050270,-2116.7043085,0.00029,120]
[355740651,1741524050293,-1550.0,0.00029,90]
[355740652,1741524050322,-627.06,0.000296,31]
[355740653,1741524050350,-627.06,0.000296,31]
[355740654,1741524050378,-627.06,0.000296,31]
[355740655,1741524050405,-627.06,0.000296,31]
[355740656,1741524050433,-627.06,0.000296,31]
[355740657,1741524050462,-627.06,0.000296,31]
[355740658,1741524050489,-627.06,0.000296,31]
[355740659,1741524050517,-627.06,0.000296,31]
[355740660,1741524050546,-627.06,0.000296,31]
[355740661,1741524050574,-627.06,0.000296,31]
[355740662,1741524050604,-627.06,0.000296,31]
[355740663,1741524050632,-627.06,0.000296,31]
[355740664,1741524050660,-627.06,0.000296,31]
[355740665,1741524050690,-627.06,0.000296,31]
[355740666,1741524050720,-627.06,0.000296,31]
[355740667,1741524050749,-627.06,0.000296,31]
[355740668,1741524050946,-627.06,0.000296,31]
[355740669,1741524050977,-627.06,0.000296,31]
[355740670,1741524051008,-627.06,0.000296,31]
[355740671,1741524051037,-627.06,0.000296,31]
[355740672,1741524051068,-627.06,0.000296,31]
[355740673,1741524051097,-627.06,0.000296,31]
[355740674,1741524051127,-627.06,0.000296,31]
[355740675,1741524051157,-627.06,0.000296,31]
[355740676,1741524051183,-3566.788,0.000298,30]
[355740677,1741524051208,-1127.87,0.00029928,30]
[355740678,1741524051236,-100000.0,0.0003,30]
[355740679,1741524051262,-3600.0,0.0003,31]
[355740680,1741524051288,-154.62531416,0.0003,120]
[355740681,1741524051314,-164.0,0.0003,120]
[355740682,1741524051340,-2000.0,0.0003,120]
[355740683,1741524051365,-500.0,0.0003,30]
[355740684,1741524051390,-10000.0,0.0003,30]
[355740685,1741524051415,-444.44444,0.000304,120]
[355740686,1741524051441,-207.0,0.0003051,30]
[355740687,1741524051466,-548.0,0.00030613,30]
[355740688,1741524051493,-100000.0,0.00031,31]
[355740689,1741524051518,-1450.0,0.00031,120]
[355740690,1741524051543,-900.0,0.00031,30]
[355740691,1741524051568,-900.0,0.00031,30]
[355740692,1741524051593,-900.0,0.00031,30]
[355740693,1741524051620,-900.0,0.00031,30]
[355740694,1741524051646,-900.0,0.00031,30]
[355740695,1741524051672,-900.0,0.00031,30]
[355740696,1741524051700,-900.0,0.00031,30]
[355740697,1741524051726,-900.0,0.00031,30]
[355740698,1741524051752,-900.0,0.00031,30]
[355740699,1741524051777,-500.0,0.00031,30]
[355740700,1741524051802,-900.0,0.00031,30]
[355740701,1741524051828,-900.0,0.00031,30]
[355740702,1741524051854,-900.0,0.00031,30]
[355740703,1741524051879,-500.0,0.00031,30]
[355740704,1741524051906,-900.0,0.00031,30]
[355740705,1741524051931,-500.0,0.00031,30]
[355740706,1741524051956,-900.0,0.00031,30]
[355740707,1741524051980,-500.0,0.00031,30]
[355740708,1741524052005,-500.0,0.00031,30]
[355740709,1741524052029,-500.0,0.00031,30]
[355740710,1741524052054,-500.0,0.00031,30]
[355740711,1741524052078,-500.0,0.00031,30]
[355740712,1741524052102,-500.0,0.00031,30]
[355740713,1741524052126,-500.0,0.00031,30]
[355740714,1741524052151,-500.0,0.00031,30]
[355740715,1741524052174,-500.0,0.00031,30]
[355740716,1741524052198,-342.25311896,0.00031,30]
[355740717,1741524052222,-500.0,0.00031,30]
[355740718,1741524052246,-500.0,0.00031,30]
[355740719,1741524052270,-500.40787565,0.00031,30]
[355740720,1741524052294,-500.0,0.00031,30]
[355740721,1741524052318,-500.0,0.00031,30]
[355740722,1741524052342,-500.0,0.00031,30]
[355740723,1741524052366,-500.0,0.00031,30]
[355740724,1741524052390,-500.0,0.00031,30]
[355740725,1741524052413,-500.0,0.00031,30]
[355740726,1741524052437,-981.3751205,0.00031,30]
[355740727,1741524052461,-500.0,0.00031,30]
[355740728,1741524052484,-500.0,0.00031,30]
[355740729,1741524052509,-500.0,0.00031,30]
[355740730,1741524052532,-500.0,0.00031,30]
[355740731,1741524052556,-500.0,0.00031,30]
[355740732,1741524052579,-500.0,0.00031,30]
[355740733,1741524052606,-500.0,0.00031,30]
[355740734,1741524052630,-500.0,0.00031,30]
[355740735,1741524052654,-500.0,0.00031,30]
[355740736,1741524052680,-500.0,0.00031,30]
[355740737,1741524052704,-500.0,0.00031,30]
[355740738,1741524052729,-500.0,0.00031,30]
[355740739,1741524052753,-500.0,0.00031,30]
[355740740,1741524052778,-500.0,0.00031,30]
[355740741,1741524052803,-500.0,0.00031,30]
[355740742,1741524052827,-500.0,0.00031,30]
[355740743,1741524052853,-500.0,0.00031,30]
[355740744,1741524052879,-500.0,0.00031,30]
[355740745,1741524052904,-500.0,0.00031,30]
[355740746,1741524052930,-500.0,0.00031,30]
[355740747,1741524052956,-500.0,0.00031,30]
[355740748,1741524052982,-855.0984297,0.00031,30]
[355740749,1741524053007,-1800.0,0.00031,32]
[355740750,1741524053031,-4282.8048745,0.00031,120]
[355740751,1741524053056,-151.56586527,0.00031,30]
[355740752,1741524053081,-388.513782,0.00031,30]
[355740753,1741524053108,-500.0,0.00031,30]
[355740754,1741524053133,-500.0,0.00031,30]
[355740755,1741524053160,-500.0,0.00031,30]
[355740756,1741524053185,-500.0,0.00031,30]
[355740757,1741524053211,-500.0,0.00031,30]
[355740758,1741524053237,-500.0,0.00031,30]
[355740759,1741524053262,-500.0,0.00031,30]
[355740760,1741524053288,-500.0,0.00031,30]
[355740761,1741524053313,-518.25382969,0.00031,30]
[355740762,1741524053341,-500.0,0.00031,30]
[355740763,1741524053366,-500.0,0.00031,30]
[355740764,1741524053395,-500.0,0.00031,30]
[355740765,1741524053430,-500.0,0.00031,30]
[355740766,1741524053460,-500.0,0.00031,30]
[355740767,1741524053493,-500.0,0.00031,30]
[355740768,1741524053524,-500.0,0.00031,30]
[355740769,1741524053558,-500.0,0.00031,30]
[355740770,1741524053590,-500.0,0.00031,30]
[355740771,1741524053624,-500.0,0.00031,30]
[355740772,1741524053654,-500.0,0.00031,30]
[355740773,1741524053686,-500.0,0.00031,30]
[355740774,1741524053719,-582.99696475,0.00031,30]
[355740775,1741524053752,-500.0,0.00031,30]
[355740776,1741524053787,-500.0,0.00031,30]
[355740777,1741524053820,-500.0,0.00031,30]
[355740778,1741524053855,-300.0,0.00031,120]
[355740779,1741524053887,-301.09288923,0.00031,30]
[355740780,1741524053919,-207.0,0.000311,30]
[355740781,1741524053949,-2373.51,0.000313,30]
[355740782,1741524053983,-150.0,0.00031436,120]
[355740783,1741524054015,-444.44444,0.000316,120]
[355740784,1741524054048,-627.06,0.000316,31]
[355740785,1741524054081,-627.06,0.000316,31]
[355740786,1741524054115,-627.06,0.000316,31]
[355740787,1741524054154,-627.06,0.000316,31]
[355740788,1741524054188,-627.06,0.000316,31]
[355740789,1741524054219,-627.06,0.000316,31]
[355740790,1741524054254,-627.06,0.000316,31]
[355740791,1741524054288,-627.06,0.000316,31]
[355740792,1741524054319,-627.06,0.000316,31]
[355740793,1741524054353,-627.06,0.000316,31]
[355740794,1741524054385,-627.06,0.000316,31]
[355740795,1741524054419,-627.06,0.000316,31]
[355740796,1741524054451,-627.06,0.000316,31]
[355740797,1741524054483,-627.06,0.000316,31]
[355740798,1741524054516,-627.06,0.000316,31]
[355740799,1741524054552,-627.06,0.000316,31]
[355740800,1741524054585,-627.06,0.000316,31]
[355740801,1741524054620,-627.06,0.000316,31]
[355740802,1741524054653,-627.06,0.000316,31]
[355740803,1741524054686,-627.06,0.000316,31]
[355740804,1741524054718,-627.06,0.000316,31]
[355740805,1741524054753,-627.06,0.000316,31]
[355740806,1741524054788,-627.06,0.000316,31]
[355740807,1741524054822,-627.06,0.000316,31]
[355740808,1741524054854,-172.77,0.00031644,91]
[355740809,1741524054884,-207.0,0.0003169,30]
[355740810,1741524054922,-2586.98,0.000317,120]
[355740811,1741524054953,-150.0,0.00031884,120]
[355740812,1741524054984,-100000.0,0.00032,32]
[355740813,1741524055016,-308.0,0.00032,120]
[355740814,1741524055046,-1800.0,0.00032,33]
[355740815,1741524055076,-207.0,0.0003228,30]
[355740816,1741524055107,-443.27,0.000325,120]
[355740817,1741524055137,-443.27,0.000325,120]
[355740818,1741524055166,-443.27,0.000325,120]
[355740819,1741524055195,-443.271,0.000325,120]
[355740820,1741524055224,-443.27,0.000325,120]
[355740821,1741524055253,-444.44444,0.000328,120]
[355740822,1741524055285,-100000.0,0.00033,33]
[355740823,1741524055314,-1800.0,0.00033,34]
[355740824,1741524055343,-1350.0,0.00033,120]
[355740825,1741524055371,-1557.28301079,0.00033,120]
[355740826,1741524055400,-300.0,0.00033,120]
[355740827,1741524055429,-800.0,0.00033019,60]
[355740828,1741524055457,-2500.0,0.00033019,60]
[355740829,1741524055486,-900.0,0.00033019,60]
[355740830,1741524055520,-627.06,0.000335,31]
[355740831,1741524055554,-627.06,0.000335,31]
[355740832,1741524055586,-627.06,0.000335,31]
[355740833,1741524055623,-627.06,0.000335,31]
[355740834,1741524055658,-627.06,0.000335,31]
[355740835,1741524055692,-627.06,0.000335,31]
[355740836,1741524055726,-627.06,0.000335,31]
[355740837,1741524055761,-627.06,0.000335,31]
[355740838,1741524055797,-627.06,0.000335,31]
[355740839,1741524055833,-627.06,0.000335,31]
[355740840,1741524055873,-627.06,0.000335,31]
[355740841,1741524055910,-627.06,0.000335,31]
[355740842,1741524055941,-768.0,0.00033674,30]
[355740843,1741524055975,-100000.0,0.00034,34]
[355740844,1741524056007,-250.0,0.00034,120]
[355740845,1741524056039,-444.44444,0.00034,120]
[355740846,1741524056069,-2734.99700667,0.00034,120]
[355740847,1741524056099,-800.0,0.00034115,60]
[355740848,1741524056129,-2500.0,0.00034115,60]
[355740849,1741524056157,-900.0,0.00034115,60]
[355740850,1741524056187,-1944.35,0.00034249,38]
[355740851,1741524056216,-1127.87,0.00034406,120]
[355740852,1741524056245,-1002.9,0.0003462,30]
[355740853,1741524056273,-679.06883799,0.000348,120]
[355740854,1741524056303,-200000.0,0.00035,35]
[355740855,1741524056331,-3251.27801081,0.00035,30]
[355740856,1741524056361,-133780.53972944,0.00035,30]
[355740857,1741524056390,-1250.0,0.00035,120]
[355740858,1741524056845,-300.0,0.00035,120]
[355740859,1741524056871,-444.44444,0.000352,120]
[355740860,1741524056897,-800.0,0.00035211,60]
[355740861,1741524056923,-2500.0,0.00035211,60]
[355740862,1741524056949,-900.0,0.00035211,60]
[355740863,1741524056974,-500.0,0.00035616,120]
[355740864,1741524057001,-303.13472324,0.00035616,120]
[355740865,1741524057028,-200000.0,0.00036,36]
[355740866,1741524057055,-750.0,0.00036,120]
[355740867,1741524057080,-211.00931839,0.00036,120]
[355740868,1741524057106,-800.0,0.00036307,60]
[355740869,1741524057133,-1824.34967236,0.00036307,60]
[355740870,1741524057159,-817.62010281,0.00036307,60]
[355740871,1741524057188,-444.44444,0.000364,120]
[355740872,1741524057217,-200000.0,0.00037,37]
[355740873,1741524057242,-1150.0,0.00037,120]
[355740874,1741524057270,-300.0,0.00037,120]
[355740875,1741524057296,-2042.0,0.00037,117]
[355740876,1741524057321,-1075.0,0.00037042,30]
[355740877,1741524057349,-1004.47136338,0.000372,103]
[355740878,1741524057376,-1004.47136335,0.000372,103]
[355740879,1741524057405,-1004.47136335,0.000372,103]
[355740880,1741524057434,-1004.47136335,0.000372,103]
[355740881,1741524057464,-1004.47136335,0.000372,103]
[355740882,1741524057491,-195.94587583,0.00037403,60]
[355740883,1741524057519,-444.44444,0.000376,120]
[355740884,1741524057549,-200000.0,0.00038,38]
[355740885,1741524057576,-750.0,0.00038,120]
[355740886,1741524057608,-1381.57808671,0.00038,120]
[355740887,1741524057634,-1883.92885183,0.00038,120]
[355740888,1741524057660,-750.0,0.00038,30]
[355740889,1741524057691,-2586.98,0.000383,120]
[355740890,1741524057717,-914.32,0.00038356,120]
[355740891,1741524057745,-767.51378425,0.000384,33]
[355740892,1741524057772,-3255.14,0.000384,120]
[355740893,1741524057798,-2500.87,0.000384,120]
[355740894,1741524057824,-247.39,0.000384,120]
[355740895,1741524057852,-245.72,0.000384,120]
[355740896,1741524057878,-2508.46,0.0003844,120]
[355740897,1741524057904,-413.59,0.0003844,120]
[355740898,1741524057931,-613.7,0.0003844,120]
[355740899,1741524057959,-150.0,0.00038551,120]
[355740900,1741524057988,-231.6503111,0.000387,120]
[355740901,1741524058016,-444.44444,0.000388,120]
[355740902,1741524058044,-1127.87,0.00038884,120]
[355740903,1741524058070,-2246.2,0.00038969,117]
[355740904,1741524058097,-1200.0,0.00038999,120]
[355740905,1741524058126,-200000.0,0.00039,39]
[355740906,1741524058151,-1637.11303178,0.00039,120]
[355740907,1741524058179,-635.29659813,0.00039,120]
[355740908,1741524058211,-3000.0,0.00039,120]
[355740909,1741524058241,-1050.0,0.00039,120]
[355740910,1741524058271,-300.0,0.00039,120]
[355740911,1741524058301,-1000.0,0.000398,60]
[355740912,1741524058331,-1468.19,0.0003987,120]
[355740913,1741524058365,-200000.0,0.0004,40]
[355740914,1741524058395,-1000.0,0.0004,120]
[355740915,1741524058423,-444.44448,0.0004,120]
[355740916,1741524058451,-890.0,0.0004,60]
[355740917,1741524058479,-152.0,0.0004,120]
[355740918,1741524058507,-715.89359365,0.0004,120]
[355740919,1741524058534,-5045.12156509,0.0004,30]
[355740920,1741524058561,-192.21212633,0.0004,30]
[355740921,1741524058589,-1050.80979769,0.0004,120]
[355740922,1741524058619,-199.31016136,0.0004,120]
[355740923,1741524058647,-173.50923,0.0004,120]
[355740924,1741524058706,-2287.57,0.0004,120]
[355740925,1741524058732,-1002620.96290449,0.0004,120]
[355740926,1741524058758,-200.0,0.0004,120]
[355740927,1741524058785,-52486.93156499,0.0004,120]
[355740928,1741524058812,-201.0,0.0004,120]
[355740929,1741524058837,-178.0,0.0004,60]
[355740930,1741524058862,-2396.20885801,0.0004,120]
[355740931,1741524058888,-1780.13,0.0004,30]
[355740932,1741524058914,-1381.57808671,0.0004,120]